Workbook

Sheet DONNEES
B4: PRODUIT | C4: Totalgénéral | D4: AUTRE DD | E4: DD | F4: GROS | G4: PRESTIGE | H4: PROMOTION | I4: SUBD | N4: Indicateurs | O4: Realisation | S4: CANAL | T4: T .ventes
B5: Boisson0.25l | C5: =SUM(ventes[[#This Row],[AUTRE DD]:[SUBD ]]) -> 1867399.059 | D5: 19764.70608 | E5: 1359388.249 | F5: 405680.6699 | G5: 0 | H5: 6007.450421 | I5: 76557.98321 | N5: Résultat | O5: 21083142.72 | S5: DD | T5: =SUM(ventes[DD]) -> 299402341.3
B6: Canette 33 cl | C6: =SUM(ventes[[#This Row],[AUTRE DD]:[SUBD ]]) -> 82543204 | D6: 360867.12 | E6: 27598142.19 | F6: 17554973.01 | G6: 120191.5971 | H6: 107628.6098 | I6: 36801401.47 | N6: Ventes | O6: =SUM(ventes[Totalgénéral]) -> 650019314.9 | S6: SUBD | T6: =SUM(ventes[[SUBD ]]) -> 235598275
B7: Confiture | C7: =SUM(ventes[[#This Row],[AUTRE DD]:[SUBD ]]) -> 7266334.705 | D7: 516519.3283 | E7: 5823435.306 | F7: 339039.9159 | G7: 0 | H7: 211987.4711 | I7: 375352.6842 | S7: GROS | T7: =SUM(ventes[GROS]) -> 103728854.1
B8: Eaux Minerale | C8: =SUM(ventes[[#This Row],[AUTRE DD]:[SUBD ]]) -> 1228998.156 | D8: 0 | E8: 1101561.178 | F8: 109285.7176 | G8: 0 | H8: 18151.26106 | I8: 0 | S8: AUTRE DD | T8: =SUM(ventes[AUTRE DD]) -> 8604353.051
B9: Harissa | C9: =SUM(ventes[[#This Row],[AUTRE DD]:[SUBD ]]) -> 1052420.607 | D9: 87126.0503 | E9: 900169.7481 | F9: 24719.32786 | G9: 0 | H9: 22960.10281 | I9: 17445.37824 | N9: Marge d'exploitation | O9: =O5/O6 -> 0.03243464038 | S9: PRESTIGE | T9: =SUM(G5:G19) -> 1484315.256
B10: LAIT | C10: =SUM(ventes[[#This Row],[AUTRE DD]:[SUBD ]]) -> 9179208 | D10: 125460 | E10: 7830743 | F10: 663649 | G10: 0 | H10: 5850 | I10: 553506 | S10: PROMOTION | T10: =SUM(ventes[PROMOTION]) -> 1201176.255
B11: PET 1.5L | C11: =SUM(ventes[[#This Row],[AUTRE DD]:[SUBD ]]) -> 40956928.08 | D11: 234151.2617 | E11: 22567553.06 | F11: 6391956.294 | G11: 54453.7818 | H11: 96118.85299 | I11: 11612694.83
B12: Pet 1l | C12: =SUM(ventes[[#This Row],[AUTRE DD]:[SUBD ]]) -> 109215159.1 | D12: 659997.288 | E12: 39585115.24 | F12: 13225133.62 | G12: 135126.0504 | H12: 124848.8912 | I12: 55484937.96
B13: Pet 1l carton jetable | C13: =SUM(ventes[[#This Row],[AUTRE DD]:[SUBD ]]) -> 1949757.531 | D13: 68571.42821 | E13: 1329828.047 | F13: 307478.151 | G13: 14369.74794 | H13: 1571.78891 | I13: 227938.368
B14: Pet 2l | C14: =SUM(ventes[[#This Row],[AUTRE DD]:[SUBD ]]) -> 166886859 | D14: 899332.3616 | E14: 55610759.44 | F14: 18748201.49 | G14: 387226.8902 | H14: 128890.2292 | I14: 91112448.6
B15: Pet 33 cl | C15: =SUM(ventes[[#This Row],[AUTRE DD]:[SUBD ]]) -> 33908963.22 | D15: 75963.02472 | E15: 15699283.93 | F15: 7233180.244 | G15: 9378.1512 | H15: 21441.51254 | I15: 10869716.35
B16: Tpk 100cl | C16: =SUM(ventes[[#This Row],[AUTRE DD]:[SUBD ]]) -> 114481783.3 | D16: 3846186.837 | E16: 75561175.78 | F16: 19308464.81 | G16: 637694.1188 | H16: 163032.7629 | I16: 14965228.97 | N16: Mois | O16: Ventes N | P16: Objectif N | Q16: Année N-1
B17: Tpk 20 cl | C17: =SUM(ventes[[#This Row],[AUTRE DD]:[SUBD ]]) -> 66576838.37 | D17: 1547556.502 | E17: 38120934.03 | F17: 16181404.4 | G17: 125874.918 | H17: 157522.1091 | I17: 10443546.41 | N17: Janvier | O17: 33263041.98 | P17: 35000000 | Q17: 0
B18: Triple concentré | C18: =SUM(ventes[[#This Row],[AUTRE DD]:[SUBD ]]) -> 4572486.322 | D18: 148941.1763 | E18: 2439563.022 | F18: 1256715.966 | G18: 0 | H18: 87211.39309 | I18: 640054.764 | N18: Février | O18: 46487894.4 | P18: 36000000 | Q18: 0
B19: PET 0.25 L | C19: =SUM(ventes[[#This Row],[AUTRE DD]:[SUBD ]]) -> 8332975.518 | D19: 13915.96637 | E19: 3874689.07 | F19: 1978971.448 | G19: 0 | H19: 47953.82025 | I19: 2417445.212 | N19: Mars | O19: 52584348.78 | P19: 38000000 | Q19: 0
N20: Avril | O20: 58465526.29 | P20: 40000000 | Q20: 0
C21: =+SUM(ventes[Totalgénéral]) -> 650019314.9 | N21: Mai | O21: 64694020.6 | P21: 45000000 | Q21: 0
N22: Juin | O22: 30449460.69 | P22: 40000000 | Q22: 53072075.8
N23: Juillet | O23: 97617823.93 | P23: 80000000 | Q23: 50868751.08
B24: Pet 2l | C24: 166886859 | D24: =(C24/$C$39)*100 -> 25.67413847 | N24: Août | O24: 102060868.4 | P24: 75000000 | Q24: 69501693.52
B25: Tpk 100cl | C25: 114481783.3 | D25: =(C25/$C$39)*100 -> 17.6120587 | N25: Septembre | O25: 83029796.06 | P25: 80000000 | Q25: 54661955.52
B26: Pet 1l | C26: 109215159.1 | D26: 16.80183289 | N26: Octobre | O26: 57435860.34 | P26: 60000000 | Q26: 49039607.82
B27: Canette 33 cl | C27: 82543204 | D27: 12.69857712 | N27: Novembre | O27: 0 | P27: 45000000 | Q27: 40380555.51
B28: Tpk 20 cl | C28: 66576838.37 | D28: 10.24228617 | N28: Décembre | O28: 0 | P28: 38000000 | Q28: 34221039.73
B29: PET 1.5L | C29: 40956928.08 | D29: 6.300878626 | N29: Totaux | O29: =SUM(O17:O28) -> 626088641.5 | P29: =SUM(P17:P28) -> 612000000
B30: Pet 33 cl | C30: 33908963.22 | D30: 5.216608559
B31: LAIT | C31: 9179208 | D31: 1.412143884
B32: PET 0.25 L | C32: 8332975.518 | D32: 1.28195814
B33: Confiture | C33: 7266334.705 | D33: 1.117864429
B34: Triple concentré | C34: 4572486.322 | D34: 0.7034385313
B35: Pet 1l carton jetable | C35: 1949757.531 | D35: 0.2999537839 | N35: % de la marge d'exploitation (entre 0 et 100)
B36: Boisson0.25l | C36: 1867399.059 | D36: 0.2872836262
B37: Eaux Minerale | C37: 1228998.156 | D37: 0.1890710211 | N37: Zone verte | O37: 33
B38: Harissa | C38: 1052420.607 | D38: 0.1619060516 | N38: Zone orange | O38: 33
C39: =+SUM(C24:C38) -> 650019314.9 | D39: =SUM(D24:D38) -> 100 | N39: Zone rouge | O39: 33
N40: Zone invisible | O40: =SUM(O37:O39) -> 99
N42: Valeur aiguille | O42: 15
N43: Largeur aiguille | O43: 1
N44: Invisible | O44: =SUM(O37:O40)-(O43+O42) -> 182
N46: Valeur Invisible1
N47: Valeur aiguille | O47: =O42&"%" -> 15%
N48: Valeur Invisible2

Sheet Tableau de Bord
M1: =M3/M4 -> 1.023020656 | Q1: 4
Q2: 1
M3: =VenteObjectif[[#Totals],[Ventes N]] -> 626088641.5 | Q3: Objectif
M4: =VenteObjectif[[#Totals],[Objectif N]] -> 612000000 | Q4: Année N-1
Q7: =INDEX(liste,ControlCourbe) -> Objectif
